[Event "Ceske Budejovice Open-A 2019"]
[Site "Ceske Budejovice"]
[Date "2019.07.03"]
[Round "5.21"]
[White "Brhlik, Antonin"]
[Black "Nezval, Filip"]
[Result "0-1"]
[ECO "B12"]
[WhiteElo "1639"]
[BlackElo "1860"]
[Annotator "NA"]
[PlyCount "82"]
[EventDate "2019.07.02"]
[EventCountry "CZE"]
[SourceTitle "playchess.com"]
[Source "ChessBase"]
[SourceQuality "1"]
[TimeControl "5400+30"]

1. e4 {[%emt 0:00:00]} c6 {[%emt 0:00:00]} 2. d4 {[%emt 0:00:00]} d5 {[%emt 0:00:00]} 3. e5 {[%emt 0:00:00]} Bf5 {[%emt 0:00:00]} 4. Nc3 {[%emt 0:00:05]} e6 {[%emt 0:00:09]} 5. g4 {[%emt 0:00:11]} Bg6 {[%emt 0:00:18]} 6. Nge2 {[%emt 0:00:16]} c5 {[%emt 0:27:42]} 7. h4 {[%emt 0:17:05]} cxd4 {[%emt 0:12:59]} 8. Nxd4 {[%emt 0:03:02]} h5 {[%emt 0:07:06]} 9. g5 {[%emt 0:12:51]} Nc6 {[%emt 0:10:56]} 10. Bb5 {[%emt 0:19:40]} Nge7 {[%emt 0:04:33]} 11. Be3 {[%emt 0:19:27]} a6 {[%emt 0:02:46]} 12. Bd3 {[%emt 0:07:35]} Bxd3 {[%emt 0:02:36]} 13. Qxd3 {[%emt 0:00:24]} Nxe5 {[%emt 0:01:08]} 14. Qe2 {[%emt 0:00:48]} N5c6 {[%emt 0:02:33]} 15. O-O-O {[%emt 0:06:27]} Qc7 {[%emt 0:04:41]} 16. f4 {[%emt 0:03:53]} O-O-O {[%emt 0:02:42]} 17. Qf2 {[%emt 0:02:06]} Nxd4 {[%emt 0:04:10]} 18. Bxd4 {[%emt 0:00:23]} Qc6 {[%emt 0:02:35]} 19. Rd3 {[%emt 0:02:34]} Kb8 {[%emt 0:03:25]} 20. Ne2 {[%emt 0:01:07]} Nf5 {[%emt 0:01:01]} 21. Rc3 {[%emt 0:01:01]} Qd7 {[%emt 0:01:33]} 22. Bb6 {[%emt 0:00:16]} Rc8 {[%emt 0:00:48]} 23. Rhh3 {[%emt 0:00:59]} Bd6 {[%emt 0:00:35]} 24. Kb1 {[%emt 0:00:32]} g6 {[%emt 0:01:28]} 25. Nd4 {[%emt 0:00:53]} Rxc3 {[%emt 0:04:53]} 26. Rxc3 {[%emt 0:00:18]} Nxd4 {[%emt 0:00:57]} 27. Bxd4 {[%emt 0:00:51]} Rc8 {[%emt 0:00:02]} 28. Rxc8+ {[%emt 0:00:38]} Qxc8 {[%emt 0:00:02]} 29. Qe3 {[%emt 0:00:30]} Qc4 {[%emt 0:00:18]} 30. b3 {[%emt 0:00:33]} Qf1+ {[%emt 0:00:10]} 31. Kb2 {[%emt 0:00:17]} Qxf4 {[%emt 0:00:25]} 32. Qc3 {[%emt 0:00:43]} e5 {[%emt 0:02:01]} 33. Bb6 {[%emt 0:00:26]} Qb4 {[%emt 0:01:02]} 34. Bc7+ {[%emt 0:00:34]} Ka7 {[%emt 0:00:31]} 35. Qxb4 {[%emt 0:00:28]} Bxb4 {[%emt 0:00:04]} 36. Bxe5 {[%emt 0:00:11]} Be1 {[%emt 0:00:17]} 37. Bd4+ {[%emt 0:00:51]} Kb8 {[%emt 0:00:09]} 38. Be5+ {[%emt 0:00:31]} Kc8 {[%emt 0:00:02]} 39. Bf6 {[%emt 0:00:31]} Kd7 {[%emt 0:00:28]} 40. Kc1 {[%emt 0:00:23]} Bxh4 {[%emt 0:00:17]} 41. Kd2 {[%emt 0:00:34]} Ke6 {[%emt 0:00:27]} 0-1

[Event "Ceske Budejovice Open-A 2019"]
[Site "Ceske Budejovice"]
[Date "2019.07.03"]
[Round "5.22"]
[White "Stodola, Zdenek"]
[Black "Pavlicek, Adam"]
[Result "0-1"]
[ECO "D55"]
[WhiteElo "1551"]
[BlackElo "1651"]
[Annotator "NA"]
[PlyCount "52"]
[EventDate "2019.07.02"]
[EventCountry "CZE"]
[SourceTitle "playchess.com"]
[Source "ChessBase"]
[SourceQuality "1"]
[TimeControl "5400+30"]

1. d4 {[%emt 0:00:00]} Nf6 {[%emt 0:00:00]} 2. c4 {[%emt 0:00:00]} e6 {[%emt 0:01:57]} 3. Nc3 {[%emt 0:00:00]} d5 {[%emt 0:02:50]} 4. Bg5 {[%emt 0:00:00]} Be7 {[%emt 0:01:18]} 5. e3 {[%emt 0:00:00]} O-O {[%emt 0:01:38]} 6. Nf3 {[%emt 0:00:07]} b6 {[%emt 0:02:47]} 7. cxd5 {[%emt 0:00:06]} Nxd5 {[%emt 0:02:26]} 8. Bxe7 {[%emt 0:00:05]} Nxe7 {[%emt 0:00:17]} 9. Bd3 {[%emt 0:00:27]} Bb7 {[%emt 0:00:56]} 10. O-O {[%emt 0:03:16]} Nd5 {[%emt 0:02:46]} 11. e4 {[%emt 0:00:45]} Nxc3 {[%emt 0:03:05]} 12. bxc3 {[%emt 0:00:03]} Nd7 {[%emt 0:00:46]} 13. Qc2 {[%emt 0:01:32]} c5 {[%emt 0:00:58]} 14. Rad1 {[%emt 0:02:14]} cxd4 {[%emt 0:05:24]} 15. cxd4 {[%emt 0:01:06]} h6 {[%emt 0:01:26]} 16. d5 {[%emt 0:05:53]} exd5 {[%emt 0:03:07]} 17. exd5 {[%emt 0:02:32]} Nf6 {[%emt 0:00:45]} 18. Qb3 {[%emt 0:05:50]} Qd6 {[%emt 0:01:15]} 19. Rfe1 {[%emt 0:02:51]} Rfe8 {[%emt 0:03:37]} 20. Nh4 {[%emt 0:07:20]} Rxe1+ {[%emt 0:02:06]} 21. Rxe1 {[%emt 0:00:03]} Bxd5 {[%emt 0:01:44]} 22. Qd1 {[%emt 0:07:22]} Qd7 {[%emt 0:12:48]} 23. Nf5 {[%emt 0:03:32]} Be6 {[%emt 0:00:22]} 24. Qf3 {[%emt 0:07:27]} Rd8 {[%emt 0:00:56]} 25. Re3 {[%emt 0:16:05]} Bxf5 {[%emt 0:01:08]} 26. Qxf5 {[%emt 0:03:24]} Qxf5 {[%emt 0:00:09]} 0-1

[Event "Ceske Budejovice Open-A 2019"]
[Site "Ceske Budejovice"]
[Date "2019.07.03"]
[Round "5.23"]
[White "Solovyova, Anastasia"]
[Black "Valasek, Jakub"]
[Result "1-0"]
[ECO "D11"]
[WhiteElo "1835"]
[BlackElo "1636"]
[Annotator "NA"]
[PlyCount "69"]
[EventDate "2019.07.02"]
[EventCountry "CZE"]
[SourceTitle "playchess.com"]
[Source "ChessBase"]
[SourceQuality "1"]
[TimeControl "5400+30"]

1. d4 {[%emt 0:00:00]} d5 {[%emt 0:00:00]} 2. c4 c6 3. Nf3 {[%emt 0:01:30]} e6 {[%emt 0:02:06]} 4. g3 {[%emt 0:08:34]} Nd7 5. Qc2 {[%emt 0:00:36]} Ngf6 {[%emt 0:04:31]} 6. Bg2 Be7 {[%emt 0:03:00]} 7. O-O {[%emt 0:02:09]} O-O {[%emt 0:04:02]} 8. Bf4 {[%emt 0:14:13]} Nh5 {[%emt 0:02:33]} 9. Bc1 {[%emt 0:02:14]} f5 {[%emt 0:04:41]} 10. b3 {[%emt 0:04:45]} Re8 {[%emt 0:08:06]} 11. Bb2 {[%emt 0:10:32]} Nhf6 12. Ne5 Nxe5 {[%emt 0:04:29]} 13. dxe5 {[%emt 0:00:37]} Ne4 {[%emt 0:05:31]} 14. e3 {[%emt 0:11:22]} Qb6 {[%emt 0:02:22]} 15. Nc3 {[%emt 0:06:52]} Nxc3 {[%emt 0:06:39]} 16. Bxc3 {[%emt 0:08:55]} a5 {[%emt 0:04:20]} 17. Rad1 Rd8 {[%emt 0:01:34]} 18. Bd4 {[%emt 0:05:23]} Bc5 19. cxd5 {[%emt 0:01:04]} Bxd4 {[%emt 0:04:16]} 20. dxc6 {[%emt 0:00:15]} Bxe5 {[%emt 0:03:44]} 21. Rxd8+ Qxd8 {[%emt 0:00:30]} 22. cxb7 {[%emt 0:00:36]} Bxb7 {[%emt 0:00:52]} 23. Bxb7 {[%emt 0:02:27]} Rb8 {[%emt 0:01:35]} 24. Rd1 {[%emt 0:01:12]} Qe7 {[%emt 0:02:16]} 25. Bc8 Qe8 26. Bd7 {[%emt 0:02:51]} Qe7 {[%emt 0:05:56]} 27. Qc6 {[%emt 0:01:19]} Kf7 {[%emt 0:05:00]} 28. f4 Bb2 29. Bxe6+ {[%emt 0:03:46]} Qxe6 {[%emt 0:02:39]} 30. Rd7+ Qxd7 {[%emt 0:01:32]} 31. Qxd7+ {[%emt 0:00:13]} Kg8 {[%emt 0:00:54]} 32. Qd5+ {[%emt 0:00:49]} Kh8 {[%emt 0:00:33]} 33. Qxa5 {[%emt 0:00:37]} Rf8 34. Qc5 Kg8 {[%emt 0:04:44]} 35. a4 {[%emt 0:00:41]} 1-0

[Event "Ceske Budejovice Open-A 2019"]
[Site "Ceske Budejovice"]
[Date "2019.07.03"]
[Round "5.24"]
[White "Chval, Petr"]
[Black "Petras, Milan"]
[Result "1-0"]
[ECO "C15"]
[WhiteElo "1885"]
[BlackElo "1935"]
[Annotator "NA"]
[PlyCount "65"]
[EventDate "2019.07.02"]
[EventCountry "CZE"]
[SourceTitle "playchess.com"]
[Source "ChessBase"]
[SourceQuality "1"]
[TimeControl "5400+30"]

1. e4 {[%emt 0:00:38]} e6 {[%emt 0:00:00]} 2. d4 {[%emt 0:00:15]} d5 {[%emt 0:00:00]} 3. Nc3 {[%emt 0:00:17]} Bb4 {[%emt 0:00:13]} 4. Qg4 {[%emt 0:00:10]} Nf6 {[%emt 0:00:48]} 5. Qxg7 {[%emt 0:00:11]} Rg8 {[%emt 0:00:08]} 6. Qh6 {[%emt 0:00:05]} dxe4 {[%emt 0:01:59]} 7. Nge2 {[%emt 0:02:27]} c5 {[%emt 0:07:27]} 8. dxc5 {[%emt 0:00:43]} Rg6 {[%emt 0:01:52]} 9. Qh4 {[%emt 0:07:37]} Rg4 {[%emt 0:02:00]} 10. Qh6 {[%emt 0:00:40]} Rg6 {[%emt 0:00:55]} 11. Qh4 {[%emt 0:06:05]} Bxc5 {[%emt 0:27:00]} 12. Bg5 {[%emt 0:02:14]} Nbd7 {[%emt 0:12:00]} 13. O-O-O {[%emt 0:04:07]} Qa5 {[%emt 0:06:36]} 14. Bxf6 {[%emt 0:02:36]} Nxf6 {[%emt 0:01:12]} 15. Nf4 {[%emt 0:01:16]} Be7 {[%emt 0:25:21]} 16. Nxg6 {[%emt 0:04:24]} fxg6 {[%emt 0:00:08]} 17. Bb5+ {[%emt 0:06:20]} Kf8 {[%emt 0:04:26]} 18. Kb1 {[%emt 0:06:00]} Kg7 {[%emt 0:00:34]} 19. Bc4 {[%emt 0:03:04]} Qc5 {[%emt 0:03:24]} 20. Bb3 {[%emt 0:00:34]} Nd5 {[%emt 0:00:58]} 21. Qg3 {[%emt 0:06:13]} e3 {[%emt 0:02:45]} 22. Nxd5 {[%emt 0:00:51]} e2 {[%emt 0:00:11]} 23. Rd2 {[%emt 0:03:16]} exd5 {[%emt 0:00:10]} 24. Rxd5 {[%emt 0:01:46]} Qb4 {[%emt 0:00:20]} 25. Qe5+ {[%emt 0:00:47]} Kh6 {[%emt 0:00:13]} 26. Qxe2 {[%emt 0:01:19]} Bg5 {[%emt 0:01:36]} 27. h4 {[%emt 0:01:49]} Bf4 {[%emt 0:00:17]} 28. g3 {[%emt 0:02:47]} Bc7 {[%emt 0:00:17]} 29. f4 {[%emt 0:01:18]} Bf5 30. Rxf5 {[%emt 0:01:59]} gxf5 {[%emt 0:00:26]} 31. Qe6+ {[%emt 0:00:14]} Kh5 {[%emt 0:00:26]} 32. Qxf5+ {[%emt 0:00:21]} Kh6 {[%emt 0:00:01]} 33. Qg5# 1-0

[Event "Ceske Budejovice Open-A 2019"]
[Site "Ceske Budejovice"]
[Date "2019.07.03"]
[Round "5.25"]
[White "Kovar, Petr"]
[Black "Sedivy, Karel"]
[Result "1/2-1/2"]
[ECO "B21"]
[WhiteElo "1937"]
[BlackElo "1757"]
[Annotator "NA"]
[PlyCount "33"]
[EventDate "2019.07.02"]
[EventCountry "CZE"]
[SourceTitle "playchess.com"]
[Source "ChessBase"]
[SourceQuality "1"]
[TimeControl "5400+30"]

1. e4 {[%emt 0:00:00]} c5 {[%emt 0:00:00]} 2. d4 {[%emt 0:00:00]} cxd4 {[%emt 0:00:42]} 3. c3 {[%emt 0:00:01]} Nc6 {[%emt 0:02:57]} 4. Bc4 {[%emt 0:01:21]} e6 {[%emt 0:01:19]} 5. cxd4 {[%emt 0:02:12]} Nf6 {[%emt 0:01:47]} 6. Nc3 {[%emt 0:03:15]} Bb4 {[%emt 0:01:57]} 7. e5 {[%emt 0:01:40]} Ne4 {[%emt 0:02:15]} 8. Qd3 {[%emt 0:00:10]} d5 {[%emt 0:06:55]} 9. Bb3 {[%emt 0:06:16]} O-O {[%emt 0:06:27]} 10. Nf3 {[%emt 0:01:13]} Qa5 {[%emt 0:01:34]} 11. Bd2 {[%emt 0:01:37]} Nxd2 {[%emt 0:04:00]} 12. Nxd2 {[%emt 0:00:23]} Qb6 {[%emt 0:02:44]} 13. Nf3 {[%emt 0:01:35]} Qa6 {[%emt 0:04:56]} 14. Bc2 {[%emt 0:03:59]} Qxd3 {[%emt 0:00:19]} 15. Bxd3 h6 {[%emt 0:00:38]} 16. O-O {[%emt 0:00:27]} Bxc3 {[%emt 0:01:47]} 17. bxc3 1/2-1/2

[Event "Ceske Budejovice Open-A 2019"]
[Site "Ceske Budejovice"]
[Date "2019.07.04"]
[Round "6.2"]
[White "Mirzoev, Azer"]
[Black "Ivanov, Mikhail M"]
[Result "1-0"]
[ECO "A46"]
[WhiteElo "2474"]
[BlackElo "2359"]
[Annotator "ChessBase"]
[PlyCount "83"]
[EventDate "2019.07.02"]
[EventCountry "CZE"]
[SourceTitle "playchess.com"]
[Source "ChessBase"]
[SourceQuality "1"]
[TimeControl "5400+30"]

1. d4 {[%emt 0:00:00]} Nf6 {[%emt 0:04:11]} 2. Nf3 {[%emt 0:00:00]} d6 {[%emt 0:00:19]} 3. Nc3 {[%emt 0:00:18]} d5 {[%emt 0:05:25]} 4. Bf4 {[%emt 0:00:56]} a6 {[%emt 0:00:33]} 5. e3 {[%emt 0:00:33]} e6 {[%emt 0:01:12]} 6. a3 {[%emt 0:00:35]} c5 {[%emt 0:01:46]} 7. Bd3 {[%emt 0:01:27]} Nbd7 {[%emt 0:10:56]} 8. O-O {[%emt 0:01:08]} c4 {[%emt 0:03:27]} 9. Be2 {[%emt 0:00:08]} b5 {[%emt 0:00:04]} 10. Nd2 {[%emt 0:01:42]} Bb7 {[%emt 0:00:21]} 11. Bf3 {[%emt 0:00:05]} Be7 {[%emt 0:03:36]} 12. e4 {[%emt 0:00:25]} Nb6 {[%emt 0:00:21]} 13. Re1 {[%emt 0:02:30]} h6 {[%emt 0:11:58]} 14. h3 {[%emt 0:02:01]} Qd7 {[%emt 0:01:46]} 15. Qe2 {[%emt 0:04:03]} Rc8 {[%emt 0:07:54]} 16. Bg3 {[%emt 0:04:25]} dxe4 {[%emt 0:05:51]} 17. Ndxe4 {[%emt 0:00:12]} O-O {[%emt 0:02:29]} 18. Nxf6+ {[%emt 0:04:47]} Bxf6 {[%emt 0:00:39]} 19. Be5 {[%emt 0:00:32]} Nd5 {[%emt 0:09:43]} 20. Bxd5 {[%emt 0:07:31]} Bxd5 {[%emt 0:00:21]} 21. Bxf6 {[%emt 0:00:20]} gxf6 {[%emt 0:00:04]} 22. Qh5 {[%emt 0:06:19]} Kh7 {[%emt 0:02:40]} 23. Nxd5 {[%emt 0:00:44]} exd5 {[%emt 0:06:04]} 24. Re3 {[%emt 0:02:20]} Rfe8 {[%emt 0:03:09]} 25. Rae1 {[%emt 0:03:07]} Rxe3 {[%emt 0:01:14]} 26. Rxe3 {[%emt 0:02:25]} Re8 {[%emt 0:01:41]} 27. Rxe8 {[%emt 0:16:13]} Qxe8 {[%emt 0:01:13]} 28. Qxd5 {[%emt 0:00:04]} Qe1+ {[%emt 0:00:05]} 29. Kh2 {[%emt 0:00:05]} Qxf2 {[%emt 0:00:18]} 30. Qxf7+ {[%emt 0:00:04]} Kh8 {[%emt 0:00:06]} 31. Qe8+ {[%emt 0:00:09]} Kg7 {[%emt 0:07:17]} 32. Qe4 {[%emt 0:00:25]} h5 {[%emt 0:04:15]} 33. d5 {[%emt 0:07:31]} h4 {[%emt 0:00:09]} 34. Qg4+ {[%emt 0:02:05]} Kf7 {[%emt 0:05:00]} 35. d6 {[%emt 0:00:21]} f5 {[%emt 0:00:45]} 36. Qg5 {[%emt 0:01:12]} Ke6 {[%emt 0:00:12]} 37. Qe7+ {[%emt 0:00:19]} Kd5 {[%emt 0:00:11]} 38. d7 {[%emt 0:02:20]} Qf4+ {[%emt 0:00:11]} 39. Kg1 {[%emt 0:00:06]} Qc1+ {[%emt 0:00:23]} 40. Kf2 {[%emt 0:00:47]} Qd2+ {[%emt 0:01:25]} 41. Qe2 {[%emt 0:02:44]} Qd4+ {[%emt 0:00:00]} 42. Qe3 {[%emt 0:00:00]} 1-0

[Event "Ceske Budejovice Open-A 2019"]
[Site "Ceske Budejovice"]
[Date "2019.07.04"]
[Round "6.4"]
[White "Sergeev, Vladimir"]
[Black "Richterova, Natasa"]
[Result "1/2-1/2"]
[ECO "D10"]
[WhiteElo "2415"]
[BlackElo "2179"]
[Annotator "NA"]
[PlyCount "91"]
[EventDate "2019.07.02"]
[EventCountry "CZE"]
[SourceTitle "playchess.com"]
[Source "ChessBase"]
[SourceQuality "1"]
[TimeControl "5400+30"]

1. c4 {[%emt 0:01:48]} c6 {[%emt 0:01:12]} 2. d4 {[%emt 0:01:28]} d5 {[%emt 0:00:05]} 3. cxd5 {[%emt 0:00:14]} cxd5 {[%emt 0:00:06]} 4. Nc3 {[%emt 0:00:03]} Nf6 {[%emt 0:00:14]} 5. Bf4 {[%emt 0:00:02]} Nc6 {[%emt 0:01:08]} 6. e3 {[%emt 0:00:09]} a6 {[%emt 0:00:08]} 7. Bd3 {[%emt 0:00:07]} Bg4 {[%emt 0:03:13]} 8. Nge2 e6 {[%emt 0:04:37]} 9. O-O {[%emt 0:00:09]} Bd6 {[%emt 0:00:25]} 10. f3 {[%emt 0:00:19]} Bh5 {[%emt 0:00:27]} 11. Bxd6 {[%emt 0:01:10]} Qxd6 {[%emt 0:00:06]} 12. Rc1 {[%emt 0:01:40]} O-O {[%emt 0:01:50]} 13. Nf4 {[%emt 0:00:24]} Bg6 {[%emt 0:02:25]} 14. Bxg6 {[%emt 0:00:12]} hxg6 {[%emt 0:00:15]} 15. Nd3 {[%emt 0:00:11]} e5 {[%emt 0:08:30]} 16. dxe5 {[%emt 0:01:08]} Nxe5 {[%emt 0:00:11]} 17. Nxe5 {[%emt 0:00:11]} Qxe5 {[%emt 0:00:05]} 18. Qd2 {[%emt 0:06:32]} Rfe8 {[%emt 0:00:50]} 19. Rfe1 {[%emt 0:00:03]} Rad8 {[%emt 0:02:52]} 20. Rcd1 {[%emt 0:00:09]} Rd7 {[%emt 0:16:02]} 21. Qd4 {[%emt 0:00:09]} Qe7 {[%emt 0:13:48]} 22. Rd3 {[%emt 0:04:15]} Rc8 {[%emt 0:06:43]} 23. Red1 {[%emt 0:02:00]} Rcd8 {[%emt 0:00:28]} 24. h3 {[%emt 0:08:37]} Qe6 {[%emt 0:06:39]} 25. h4 {[%emt 0:08:41]} Qe7 {[%emt 0:01:46]} 26. Qf4 {[%emt 0:00:33]} b5 {[%emt 0:05:49]} 27. a3 {[%emt 0:02:14]} Qc5 {[%emt 0:01:16]} 28. Qb4 {[%emt 0:07:14]} Qxb4 {[%emt 0:05:42]} 29. axb4 {[%emt 0:00:10]} Kf8 {[%emt 0:00:03]} 30. g4 {[%emt 0:00:24]} Rc8 {[%emt 0:03:53]} 31. g5 {[%emt 0:00:16]} Ne8 {[%emt 0:01:18]} 32. Rxd5 {[%emt 0:06:22]} Rxd5 {[%emt 0:01:08]} 33. Rxd5 {[%emt 0:00:04]} Rc4 {[%emt 0:00:25]} 34. Rd4 {[%emt 0:00:09]} Rxd4 {[%emt 0:01:12]} 35. exd4 {[%emt 0:00:02]} Nd6 {[%emt 0:00:19]} 36. Kf2 {[%emt 0:23:00]} Nf5 {[%emt 0:01:27]} 37. Nd5 {[%emt 0:01:58]} Nxd4 {[%emt 0:01:18]} 38. Ke3 {[%emt 0:00:37]} Nf5+ {[%emt 0:09:52]} 39. Ke4 {[%emt 0:01:20]} Nxh4 {[%emt 0:00:33]} 40. f4 {[%emt 0:00:17]} Ng2 {[%emt 0:00:56]} 41. Nc7 {[%emt 0:00:18]} Ke7 {[%emt 0:00:08]} 42. Nxa6 {[%emt 0:00:02]} Kd6 {[%emt 0:00:15]} 43. Nc5 {[%emt 0:00:09]} Ne1 {[%emt 0:00:00]} 44. Nb7+ {[%emt 0:00:00]} Kc7 {[%emt 0:00:00]} 45. Nc5 {[%emt 0:00:00]} Kd6 {[%emt 0:00:00]} 46. Nb7+ {[%emt 0:00:00] Ke5+} 1/2-1/2

[Event "Ceske Budejovice Open-A 2019"]
[Site "Ceske Budejovice"]
[Date "2019.07.04"]
[Round "6.5"]
[White "Plischki, Sebastian"]
[Black "Karasek, Lukas"]
[Result "1/2-1/2"]
[ECO "A15"]
[WhiteElo "2420"]
[BlackElo "2278"]
[Annotator "NA"]
[PlyCount "81"]
[EventDate "2019.07.02"]
[EventCountry "CZE"]
[SourceTitle "playchess.com"]
[Source "ChessBase"]
[SourceQuality "1"]
[TimeControl "5400+30"]

1. c4 {[%emt 0:00:00]} Nf6 {[%emt 0:00:52]} 2. g3 {[%emt 0:00:05]} e5 {[%emt 0:00:51]} 3. Bg2 {[%emt 0:00:10]} d5 {[%emt 0:00:34]} 4. cxd5 {[%emt 0:00:07]} Nxd5 {[%emt 0:00:03]} 5. Nc3 {[%emt 0:00:16]} Ne7 {[%emt 0:00:49]} 6. Nf3 {[%emt 0:00:41]} Nbc6 {[%emt 0:00:04]} 7. b4 {[%emt 0:01:07]} a6 {[%emt 0:00:12]} 8. a4 {[%emt 0:01:21]} g6 {[%emt 0:03:06]} 9. Ba3 {[%emt 0:01:00]} Bg7 {[%emt 0:00:12]} 10. O-O {[%emt 0:01:50]} O-O {[%emt 0:02:01]} 11. d3 {[%emt 0:00:43]} Re8 {[%emt 0:13:05]} 12. b5 {[%emt 0:03:32]} Nd4 {[%emt 0:01:53]} 13. Nd2 {[%emt 0:10:22]} Ra7 {[%emt 0:17:00]} 14. e3 {[%emt 0:01:55]} Ndf5 {[%emt 0:14:09]} 15. Qc2 {[%emt 0:03:25]} Nd6 {[%emt 0:05:44]} 16. Rfc1 {[%emt 0:06:07]} b6 {[%emt 0:04:03]} 17. a5 {[%emt 0:12:00]} axb5 {[%emt 0:10:36]} 18. Bxd6 {[%emt 0:12:02]} cxd6 {[%emt 0:00:05]} 19. Nxb5 {[%emt 0:04:00]} Rxa5 {[%emt 0:00:28]} 20. Rxa5 {[%emt 0:06:45]} bxa5 {[%emt 0:00:01]} 21. Nc4 {[%emt 0:00:12]} d5 {[%emt 0:01:59]} 22. Ncd6 {[%emt 0:00:21]} Rf8 {[%emt 0:00:13]} 23. Bxd5 {[%emt 0:10:42]} Nxd5 {[%emt 0:03:30]} 24. Qxc8 {[%emt 0:00:46]} Qxc8 {[%emt 0:00:42]} 25. Nxc8 {[%emt 0:00:39]} Rd8 {[%emt 0:00:47]} 26. Ncd6 {[%emt 0:05:29]} Nb4 {[%emt 0:10:46]} 27. Rc7 {[%emt 0:01:12]} f5 {[%emt 0:02:45]} 28. Ra7 {[%emt 0:05:39]} Nxd3 {[%emt 0:01:18]} 29. Rxa5 Bf8 {[%emt 0:00:27]} 30. Nc4 {[%emt 0:02:55]} Rc8 {[%emt 0:01:47]} 31. Ra4 {[%emt 0:01:52]} Rb8 {[%emt 0:00:30]} 32. Nc3 {[%emt 0:02:20]} Rb4 {[%emt 0:01:23]} 33. Rxb4 {[%emt 0:00:54]} Bxb4 {[%emt 0:00:03]} 34. Nd5 {[%emt 0:00:31]} Bc5 {[%emt 0:00:13]} 35. f3 {[%emt 0:01:58]} Kf7 {[%emt 0:00:37]} 36. Kf1 {[%emt 0:00:29]} Ke6 {[%emt 0:00:14]} 37. Nc7+ {[%emt 0:00:44]} Kf6 {[%emt 0:03:29]} 38. Ke2 {[%emt 0:01:08]} Nb4 {[%emt 0:00:42]} 39. e4 {[%emt 0:01:13]} fxe4 {[%emt 0:01:22]} 40. fxe4 {[%emt 0:00:07]} Nc6 {[%emt 0:00:16]} 41. Nd5+ {[%emt 0:00:39]} 1/2-1/2

[Event "Ceske Budejovice Open-A 2019"]
[Site "Ceske Budejovice"]
[Date "2019.07.04"]
[Round "6.6"]
[White "Lys, Josef"]
[Black "Marsalek, Zdenek"]
[Result "1/2-1/2"]
[ECO "D11"]
[WhiteElo "2149"]
[BlackElo "2259"]
[Annotator "NA"]
[PlyCount "114"]
[EventDate "2019.07.02"]
[EventCountry "CZE"]
[SourceTitle "playchess.com"]
[Source "ChessBase"]
[SourceQuality "1"]
[TimeControl "5400+30"]

1. d4 {[%emt 0:00:00]} d5 {[%emt 0:00:00]} 2. c4 {[%emt 0:00:00]} c6 {[%emt 0:00:00]} 3. e3 {[%emt 0:00:46]} Nf6 {[%emt 0:00:27]} 4. Nf3 {[%emt 0:00:19]} e6 {[%emt 0:00:16]} 5. Bd3 {[%emt 0:00:37]} Nbd7 {[%emt 0:00:30]} 6. Qc2 {[%emt 0:01:05]} Bd6 {[%emt 0:01:10]} 7. Nc3 {[%emt 0:00:48]} O-O {[%emt 0:01:46]} 8. b3 {[%emt 0:00:22]} e5 {[%emt 0:02:01]} 9. cxd5 {[%emt 0:00:18]} cxd5 {[%emt 0:00:16]} 10. dxe5 {[%emt 0:01:45]} Nxe5 {[%emt 0:00:16]} 11. Nxe5 {[%emt 0:01:12]} Bxe5 {[%emt 0:00:05]} 12. Bb2 {[%emt 0:01:20]} Re8 {[%emt 0:03:39]} 13. Ne2 {[%emt 0:13:53]} Qa5+ {[%emt 0:02:26]} 14. Bc3 {[%emt 0:00:21]} Bxc3+ {[%emt 0:17:13]} 15. Qxc3 {[%emt 0:00:15]} Qxc3+ {[%emt 0:04:17]} 16. Nxc3 {[%emt 0:00:11]} d4 {[%emt 0:02:16]} 17. Nb5 {[%emt 0:03:16]} dxe3 {[%emt 0:00:50]} 18. Nc7 {[%emt 0:01:13]} exf2+ {[%emt 0:00:07]} 19. Kxf2 {[%emt 0:00:27]} Ng4+ {[%emt 0:00:21]} 20. Kf1 {[%emt 0:15:29]} Re3 {[%emt 0:01:52]} 21. Nxa8 {[%emt 0:00:18]} Rxd3 {[%emt 0:00:08]} 22. h3 {[%emt 0:00:54]} Nf6 {[%emt 0:04:27]} 23. Ke2 {[%emt 0:08:45]} Rd8 {[%emt 0:01:56]} 24. Rhd1 {[%emt 0:09:22]} Bd7 {[%emt 0:02:29]} 25. Nc7 {[%emt 0:00:37]} Rc8 {[%emt 0:01:05]} 26. Nd5 {[%emt 0:02:00]} Rc2+ {[%emt 0:03:56]} 27. Kf1 {[%emt 0:07:17]} Bb5+ {[%emt 0:04:05]} 28. Kg1 {[%emt 0:00:20]} Kf8 {[%emt 0:05:01]} 29. Nb4 {[%emt 0:04:47]} Rc8 {[%emt 0:07:59]} 30. Rac1 {[%emt 0:01:12]} Rb8 {[%emt 0:00:23]} 31. a4 {[%emt 0:00:53]} Be8 {[%emt 0:00:49]} 32. a5 {[%emt 0:04:23]} Bd7 {[%emt 0:02:28]} 33. Nd3 {[%emt 0:08:19]} h6 {[%emt 0:02:22]} 34. Ne5 {[%emt 0:01:20]} Be6 {[%emt 0:01:18]} 35. b4 {[%emt 0:00:50]} a6 {[%emt 0:00:47]} 36. Rc7 {[%emt 0:01:15]} Ke8 {[%emt 0:00:44]} 37. Nc4 {[%emt 0:03:31]} Bd5 {[%emt 0:00:40]} 38. Nd6+ {[%emt 0:02:45]} Kf8 {[%emt 0:00:23]} 39. Re1 {[%emt 0:02:22]} Kg8 {[%emt 0:03:05]} 40. Ree7 {[%emt 0:01:33]} Kf8 {[%emt 0:01:58]} 41. g3 {[%emt 0:00:00]} b6 {[%emt 0:00:00]} 42. Nxf7 {[%emt 0:00:00]} Ne8 {[%emt 0:00:00]} 43. Ra7 {[%emt 0:00:00]} bxa5 {[%emt 0:00:00]} 44. bxa5 {[%emt 0:00:00]} Rb3 {[%emt 0:00:00]} 45. g4 {[%emt 0:00:00]} Rg3+ {[%emt 0:00:00]} 46. Kf2 {[%emt 0:00:00]} Rf3+ {[%emt 0:00:00]} 47. Ke2 {[%emt 0:00:00]} Rxf7 {[%emt 0:00:00]} 48. Rxf7+ {[%emt 0:00:00]} Bxf7 {[%emt 0:00:00]} 49. Kd3 {[%emt 0:00:00]} h5 {[%emt 0:00:00]} 50. Rxa6 {[%emt 0:00:00]} hxg4 {[%emt 0:00:00]} 51. hxg4 {[%emt 0:00:00]} Nf6 {[%emt 0:00:00]} 52. g5 {[%emt 0:00:00]} Nd7 {[%emt 0:00:00]} 53. Kd4 {[%emt 0:00:00]} Ke7 {[%emt 0:00:00]} 54. Rc6 {[%emt 0:01:30]} Bh5 {[%emt 0:00:00]} 55. Ke4 {[%emt 0:00:27]} Be2 {[%emt 0:00:00]} 56. Rg6 {[%emt 0:03:26]} Kf7 {[%emt 0:00:00]} 57. Rd6 {[%emt 0:00:21]} Ke7 {[%emt 0:00:00]} 1/2-1/2